bitfinex/quotes_ETHUSD_20240816
["timestamp","ask_amount","ask_price","bid_price","bid_amount"]
[1723776032622,0.06487126,2601.8,2601.0,1.92231]
[1723776032834,2.47152,2602.1,2601.1,0.07687613]
[1723776033130,1.92152,2602.1,2600.9,36.9224]
[1723776033305,1.92174,2601.8,2600.9,35.0]
[1723776034198,1.92168,2601.9,2600.9,36.92238]
[1723776034409,1.92125,2602.5,2601.5,1.9219]
[1723776034410,1.92123,2602.5,2601.5,1.9219]
[1723776034626,4.2515,2602.6,2601.7,4.4045]
[1723776034803,1.92095,2602.9,2601.7,6.3263]
[1723776035141,4.2515,2603.0,2602.0,1.92159]
[1723776035142,0.06278005,2602.5,2602.0,1.92159]
[1723776035399,1.92166,2602.0,2601.0,1.92226]
[1723776035549,4.2515,2602.6,2601.1,1.9222]
[1723776035550,1.92151,2602.2,2601.1,1.9222]
[1723776035732,1.92151,2602.2,2601.2,35.0]
[1723776036230,1.92158,2602.1,2601.2,35.0]
[1723776036442,4.2515,2602.1,2601.2,35.0]
[1723776036626,6.17304,2602.1,2600.9,1.9224]
[1723776036936,0.05856101,2602.0,2600.9,1.9224]
[1723776037128,0.05856101,2602.0,2601.0,35.0]
[1723776037330,1.92175,2601.8,2601.0,35.0]
[1723776037557,1.92182,2601.7,2600.7,1.92252]
[1723776037764,1.92182,2601.7,2600.2,1.92287]
[1723776037765,4.0935,2601.6,2600.4,1.92276]
[1723776037941,6.56546,2601.6,2600.4,1.92276]
[1723776038153,0.05856373,2601.5,2600.5,35.0]
[1723776038555,1.92212,2601.3,2600.5,35.0]
[1723776039010,0.05845523,2601.2,2600.5,36.92269]
[1723776039186,0.05845523,2601.2,2600.6,1.9994592]
[1723776039351,4.0935,2601.6,2600.8,1.92242]
[1723776039547,0.42515,2602.1,2600.8,0.07688239]
[1723776039548,4.0935,2601.9,2600.8,0.07688239]
[1723776039760,6.015,2602.2,2601.3,1.9221]
[1723776039933,0.05831775,2601.8,2600.9,6.29049]
[1723776040133,1.92152,2602.1,2601.0,35.0]
[1723776040333,0.05830874,2601.7,2601.0,35.0]
[1723776040572,4.057,2602.7,2601.0,35.0]
[1723776040777,1.92189,2601.7,2600.7,1.9225]
[1723776040986,1.92194,2601.6,2600.5,4.3681]
[1723776041131,1.92211,2601.3,2600.2,1.92289]
[1723776041331,1.92219,2601.2,2600.3,35.0]
[1723776041538,1.92219,2601.2,2600.1,6.29107]
[1723776041539,1.92234,2601.0,2600.1,6.29107]
[1723776041743,1.92248,2600.8,2599.8,1.92322]
[1723776041991,1.92256,2600.7,2599.8,1.92322]
[1723776042158,1.98092854,2600.7,2599.9,35.0]
[1723776042670,6.01591,2600.9,2599.9,36.92313]
[1723776042877,1.92249,2600.8,2599.9,36.92313]
[1723776043043,1.92249,2600.8,2599.9,35.0]
[1723776043044,1.98087156,2600.8,2599.9,35.0]
[1723776043239,1.92249,2600.8,2599.9,35.0]
[1723776044545,1.92256,2600.7,2599.9,35.0]
[1723776045493,0.55,2600.6,2599.5,1.92344]
[1723776045790,0.55,2600.6,2599.2,1.92366]
[1723776045791,1.92298,2600.2,2599.2,1.92366]
[1723776045996,1.92318,2599.9,2599.3,35.0]
[1723776046287,1.92308,2600.0,2599.3,35.0]
[1723776046603,1.92316,2599.9,2599.3,35.0]
[1723776046900,4.519817,2599.9,2598.8,1.92396]
[1723776047113,4.0802,2599.7,2598.1,4.2917]
[1723776047313,4.0802,2599.7,2598.3,1.92433]
[1723776047314,1.92346,2599.5,2598.3,1.92433]
[1723776047478,1.92346,2599.5,2598.6,1.92411]
[1723776047663,4.0802,2599.7,2598.6,1.92411]
[1723776047875,0.05719102,2599.4,2598.6,1.92411]
[1723776048220,0.05718609,2599.3,2598.7,35.0]
[1723776048524,1.92345,2599.5,2598.7,35.0]
[1723776048907,0.0570052,2599.4,2598.7,35.0]
[1723776049279,1.92345,2599.5,2598.7,35.0]
[1723776049475,0.05691666,2599.3,2598.7,35.0]
[1723776049784,0.55,2599.6,2598.7,35.0]
[1723776050008,0.05680834,2599.5,2598.7,35.0]
[1723776050628,1.98025834,2599.5,2598.7,35.0]
[1723776050987,0.05680834,2599.5,2598.7,39.0405]
[1723776051320,4.0802,2599.7,2598.7,39.0405]
[1723776051694,6.00351,2599.7,2598.7,39.0405]
[1723776052017,4.0802,2599.7,2598.7,39.0405]
[1723776052225,1.92344,2599.6,2598.7,39.0405]
[1723776052409,1.92346,2599.5,2598.7,35.0]
[1723776052730,1.98032279,2599.5,2598.7,35.0]
[1723776053096,1.92353,2599.4,2598.7,35.0]
[1723776053296,1.98037872,2599.4,2598.7,35.0]
[1723776053534,0.05684872,2599.4,2598.7,35.0]
[1723776053887,6.0035,2599.7,2598.7,35.0]
[1723776054083,0.0568195,2599.3,2598.8,1.92395]
[1723776054289,0.0568195,2599.3,2598.7,35.0]
[1723776054290,1.92338,2599.6,2598.7,35.0]
[1723776054718,4.0802,2599.7,2598.7,35.0]
[1723776054719,1.92353,2599.4,2598.7,35.0]
[1723776055100,2.523713,2599.6,2598.7,35.0]
[1723776055101,4.4184,2599.2,2598.7,35.0]
[1723776055428,1.92352,2599.4,2598.7,35.0]
[1723776055621,0.05682088,2599.1,2598.7,35.0]
[1723776055931,1.92361,2599.3,2598.7,35.0]
[1723776056828,0.05672907,2599.2,2598.7,35.0]
[1723776057036,1.92361,2599.3,2598.7,35.0]
[1723776057188,0.05672665,2599.1,2598.6,1.92411]
[1723776057388,1.92345,2599.5,2598.4,1.92425]
[1723776057584,0.05673175,2599.4,2598.5,1.92416]
[1723776058036,0.05673175,2599.4,2598.2,6.33909]
[1723776058233,1.92372,2599.2,2598.6,35.0]
[1723776058397,1.92372,2599.2,2598.1,1.92447]
[1723776058585,1.92385,2599.0,2598.1,1.92447]
[1723776058788,0.0567538,2598.9,2598.2,35.0]
[1723776059187,0.0567538,2598.9,2598.3,1.9243]
[1723776059401,4.2392,2599.3,2598.4,1.92425]
[1723776059600,0.05672424,2599.2,2598.4,6.25875]
[1723776059787,0.05672424,2599.2,2598.5,35.0]
[1723776059990,4.2392,2599.3,2598.6,0.07695408]
[1723776060228,6.16279,2599.3,2598.4,6.25875]
[1723776060429,0.05668685,2599.2,2598.4,6.25875]
[1723776060836,0.05668685,2599.2,2598.5,35.0]
[1723776061036,6.58671,2599.3,2598.5,35.0]
[1723776061328,0.05668767,2599.1,2598.5,35.0]
[1723776061666,0.05668634,2599.0,2598.5,35.0]
[1723776061830,6.58671,2599.3,2598.5,35.0]
[1723776062177,0.40006705,2599.7,2598.5,35.0]
[1723776062178,0.05668392,2598.9,2598.6,2.00105407]
[1723776062315,4.0346,2599.7,2599.0,1.92379]
[1723776062517,1.92316,2599.9,2598.9,1.92388]
[1723776062722,1.97823149,2599.6,2599.0,35.0]
[1723776062952,1.92353,2599.4,2599.0,35.0]
[1723776063476,0.05496981,2599.3,2599.0,35.0]
[1723776063771,0.05496981,2599.3,2598.5,1.92417]
[1723776063971,0.05496981,2599.3,2598.5,2.00111138]
[1723776064121,0.05496981,2599.3,2598.6,36.9241]
[1723776064320,1.92337,2599.6,2598.6,35.0]
[1723776064571,1.92335,2599.7,2598.8,1.92393]
[1723776064735,0.05494796,2599.5,2598.9,1.92388]
[1723776064945,6.76143137,2599.8,2598.9,1.92388]
[1723776064946,0.05494822,2599.6,2598.9,1.92388]
[1723776065141,0.05494338,2599.4,2598.9,1.92388]
[1723776065379,0.05493879,2599.5,2598.9,1.92388]
[1723776065582,0.05493395,2599.3,2598.7,6.21493]
[1723776065743,0.05492341,2599.4,2598.7,6.21493]
[1723776066073,1.92339,2599.6,2598.7,6.21493]
[1723776066232,0.05503274,2599.3,2598.7,6.21493]
[1723776066430,1.92339,2599.6,2598.7,6.21493]
[1723776066673,0.05503382,2599.2,2598.6,35.0]
[1723776066972,4.3298,2599.1,2598.6,35.0]
[1723776067635,1.92382,2599.0,2598.6,35.0]
[1723776067878,1.92389,2598.9,2598.0,4.79713117]
[1723776068176,1.92389,2598.9,2597.7,1.92475]
[1723776068177,1.97888954,2598.9,2597.7,1.92475]
[1723776068361,1.97888954,2598.9,2598.1,35.0]
[1723776068681,1.92411,2598.6,2598.1,35.0]
[1723776068884,6.32199,2598.5,2597.7,0.61623117]
[1723776069175,2.556459,2598.4,2597.7,0.61623117]
[1723776069329,2.556459,2598.4,2597.8,35.0]
[1723776069536,0.05475243,2598.3,2597.8,35.0]
[1723776070246,0.05475243,2598.3,2597.9,1.92462]
[1723776070477,1.92374,2599.1,2598.1,1.92447]
[1723776070773,1.92374,2599.1,2598.0,4.3082]
[1723776070774,1.92374,2599.1,2598.2,2.54063117]
[1723776071130,4.3978,2599.3,2598.3,0.07696257]
[1723776071333,4.3978,2599.3,2598.6,1.9241]
[1723776071606,4.3978,2599.3,2598.4,0.61623117]
[1723776071730,4.3978,2599.3,2598.3,1.92432]
[1723776071936,6.32144,2599.3,2598.3,1.92432]
[1723776072166,1.92338,2599.6,2598.4,0.07695399]
[1723776072478,4.3978,2599.7,2598.8,1.92396]
[1723776072787,4.3978,2599.7,2598.9,1.92387]
[1723776072933,4.3978,2599.7,2598.8,1.92396]
[1723776073332,4.3978,2599.7,2598.9,1.92388]
[1723776073834,6.3211,2599.7,2598.7,1.92399]
[1723776074677,1.92346,2599.5,2598.6,1.9241]
[1723776074832,2.747916,2599.5,2598.6,1.9241]
[1723776075501,6.3211,2599.7,2598.7,1.92403]
[1723776075798,4.3978,2599.7,2598.9,1.92383]
[1723776076454,4.3978,2599.7,2599.0,1.9238]
[1723776076865,0.05503121,2599.6,2598.6,1.92408]
[1723776077070,0.55,2599.5,2598.6,2.00102011]
[1723776077378,0.60502879,2599.5,2598.6,2.61725128]
[1723776077547,0.60502879,2599.5,2598.6,1.92408]
[1723776077758,0.60502879,2599.5,2598.7,4.3837]
[1723776077759,0.05502879,2599.5,2598.7,4.3837]
[1723776078056,1.923,2600.1,2598.9,1.92388]
[1723776078258,0.05501084,2599.4,2599.0,1.92375]
[1723776078475,1.9231,2600.0,2598.9,2.54011117]
[1723776078476,1.92309,2600.0,2599.1,1.92372]
[1723776078788,0.05510953,2599.3,2598.4,4.1966]
[1723776078950,4.0661,2599.7,2598.4,6.73707117]
[1723776078951,1.92353,2599.4,2598.4,6.73707117]
[1723776079137,1.92338,2599.6,2598.5,1.92413]
[1723776079138,0.05521802,2599.2,2598.5,1.92413]
[1723776079340,0.598948,2599.5,2598.6,1.9241]
[1723776079541,0.05523241,2599.1,2598.6,1.9241]
[1723776079807,0.598948,2599.5,2598.4,1.92423]
[1723776080091,4.0661,2599.2,2598.4,1.92422]
[1723776080253,4.5332245,2599.2,2598.4,2.54045117]
[1723776080482,4.0661,2599.2,2598.4,2.54045117]
[1723776080695,0.05523062,2599.1,2598.4,0.61623117]
[1723776081073,0.05523062,2599.1,2598.4,2.54048117]
[1723776082754,0.05523062,2599.1,2598.4,0.61623117]
[1723776083002,0.05523062,2599.1,2598.5,0.61623117]
[1723776083169,0.05523062,2599.1,2598.5,2.54034117]
[1723776083983,0.05523062,2599.1,2598.5,1.92411]
[1723776084255,0.05523062,2599.1,2598.6,1.92407]
[1723776084454,0.55,2599.4,2598.5,1.92411]
[1723776084679,0.05496031,2599.0,2598.6,1.92409]
[1723776084851,0.55,2599.4,2598.6,1.92409]
[1723776085269,0.0549884,2599.3,2598.5,1.92411]
[1723776085493,1.9785884,2599.3,2598.4,1.92425]
[1723776086211,1.9785884,2599.3,2597.9,0.5770645]
[1723776086212,0.0549884,2599.3,2599.0,1.92381]
[1723776086702,4.0471,2599.8,2598.6,4.262]
[1723776086703,1.92331,2599.7,2598.6,1.9241]
[1723776086857,1.92344,2599.5,2598.6,1.9241]
[1723776087059,0.05513846,2599.4,2598.6,1.9241]
[1723776088758,4.0471,2599.3,2598.4,1.92422]
[1723776089102,4.0471,2599.3,2598.3,6.13522]
[1723776089103,4.10217669,2599.3,2598.3,6.13522]
[1723776089510,4.10217669,2599.3,2598.7,1.92401]
[1723776089862,4.10217669,2599.3,2598.5,1.92418]
[1723776090180,4.10217669,2599.3,2598.7,1.92403]
[1723776090181,0.05507669,2599.3,2598.7,1.92403]
[1723776090384,0.05507669,2599.3,2598.9,1.92385]
[1723776090584,4.0471,2599.6,2598.9,1.92385]
[1723776090792,0.0550522,2599.2,2598.9,1.92385]
[1723776091002,4.0471,2599.6,2598.9,1.92385]
[1723776091156,0.05507522,2599.1,2598.9,1.92385]
[1723776091499,4.0471,2599.6,2598.6,1.92411]
[1723776091500,0.05507343,2599.0,2598.6,1.92411]
[1723776091712,4.0471,2599.6,2598.7,1.92403]
[1723776091713,1.92345,2599.5,2598.7,1.92403]
[1723776091922,0.05508536,2598.9,2598.7,1.92403]
[1723776092079,0.637511,2599.5,2598.7,1.92403]
[1723776092281,0.05508303,2598.8,2598.7,1.92403]
[1723776092501,0.637511,2599.5,2598.7,1.92403]
[1723776092705,1.92302,2600.1,2598.8,0.07694607]
[1723776092915,4.0471,2600.0,2599.2,1.92361]
[1723776093125,4.0471,2600.0,2599.3,0.07693037]
[1723776093126,4.644112,2600.0,2599.3,0.07693037]
[1723776093425,4.0471,2600.3,2599.5,1.92338]
[1723776093785,5.96996,2600.3,2599.3,1.92353]
[1723776094008,0.789274,2600.2,2599.3,1.92353]
[1723776094214,0.789274,2600.2,2599.4,1.92346]
[1723776094417,0.789274,2600.2,2599.3,1.92353]
[1723776094635,0.789274,2600.2,2598.9,4.99353192]
[1723776094929,2.712204,2600.2,2599.3,1.92359]
[1723776095235,1.923,2600.1,2599.1,1.92371]
[1723776095392,0.4635204,2600.0,2599.1,1.92371]
[1723776096294,0.4635204,2600.0,2599.2,1.92366]
[1723776096784,4.0471,2600.3,2599.5,1.92341]
[1723776096986,4.0471,2600.6,2599.6,0.07691928]
[1723776097417,0.596967,2600.5,2599.7,1.92322]
[1723776097618,0.596967,2600.5,2599.8,0.07691479]
[1723776097823,0.596967,2600.5,2599.8,2.00013479]
[1723776097982,0.596967,2600.5,2599.9,1.92315]
[1723776098300,4.3225,2601.0,2600.0,1.99992946]
[1723776098501,6.24485,2601.0,2600.0,1.99992946]
[1723776098993,4.3225,2601.0,2600.1,1.92298]
[1723776099201,0.816714,2600.9,2600.1,1.92298]
[1723776099405,6.24484,2601.0,2600.1,1.92298]
[1723776099626,4.3225,2601.3,2599.9,4.14550563]
[1723776099790,1.92196,2601.6,2600.0,1.92307]
[1723776099791,4.3225,2601.1,2600.0,1.92307]
[1723776099991,1.92249,2600.8,2599.8,1.92319]
[1723776100232,1.92249,2600.8,2599.9,1.92314]
[1723776100400,1.92237,2601.0,2600.0,1.92307]
[1723776100788,1.92249,2600.8,2599.8,1.92318]
[1723776101128,6.24507,2600.7,2599.8,1.92321]
[1723776101338,4.3225,2600.7,2599.8,1.92321]
[1723776101488,4.946999,2600.7,2599.8,1.92321]
[1723776101689,4.3225,2600.7,2600.0,1.92304]
[1723776102193,4.029,2601.0,2600.1,1.92297]
[1723776103507,4.029,2601.0,2599.9,4.1009]
[1723776103705,1.92249,2600.8,2599.8,1.92321]
[1723776103909,4.2447,2600.5,2599.6,1.92335]
[1723776104144,0.42447,2600.4,2599.6,1.92335]
[1723776104440,0.42447,2600.4,2599.4,1.92349]
[1723776104619,0.42447,2600.4,2599.5,1.92343]
[1723776104620,2.34725,2600.4,2599.5,1.92343]
[1723776104822,1.92285,2600.3,2599.3,1.92359]
[1723776105125,1.92301,2600.1,2599.2,4.2761]
[1723776105329,4.3491,2600.0,2599.2,6.19976]
[1723776105497,6.27224,2600.0,2598.4,4.3508]
[1723776105832,6.27224,2600.0,2598.9,1.92388]
[1723776105833,1.92323,2599.8,2598.9,1.92388]
[1723776106949,0.05357231,2599.7,2598.7,1.92403]
[1723776107154,4.44,2599.6,2598.7,1.92403]
[1723776107344,0.0534791,2599.5,2598.7,1.92403]
[1723776107527,0.0534791,2599.5,2598.5,1.92416]
[1723776107716,1.9769291,2599.5,2598.5,1.92416]
[1723776107910,1.92359,2599.3,2598.3,1.9243]
[1723776108148,0.55,2599.9,2598.2,1.92439]
[1723776108149,6.96704458,2599.2,2598.2,1.92439]
[1723776108459,1.92382,2599.0,2598.0,4.1709]
[1723776108970,0.05334381,2598.9,2598.0,4.1709]
[1723776109139,0.05334381,2598.9,2597.9,1.92461]
[1723776109855,0.05334381,2598.9,2598.1,1.92447]
[1723776110546,0.05334381,2598.9,2597.8,1.9247]
[1723776110547,4.086,2598.8,2597.8,1.9247]
[1723776110696,4.086,2598.8,2597.6,4.67285134]
[1723776110850,0.05314137,2598.7,2597.8,0.50195134]
[1723776111250,0.05314137,2598.7,2597.8,1.92468]
[1723776111483,0.05314137,2598.7,2597.9,1.92462]
[1723776111680,0.05314137,2598.7,2597.7,1.92477]
[1723776112205,0.05314137,2598.7,2597.8,1.9247]
[1723776112405,0.05314137,2598.7,2597.6,6.09575]
[1723776112406,1.97719137,2598.7,2597.6,6.09575]
[1723776112703,2.58350351,2598.7,2597.8,1.9247]
[1723776112856,1.97719137,2598.7,2597.8,1.9247]
[1723776113558,1.97719137,2598.7,2597.7,1.92477]
[1723776113559,1.92411,2598.6,2597.7,1.92477]
[1723776113861,0.05283355,2598.5,2597.7,1.92477]
[1723776114178,0.05283355,2598.5,2597.5,6.18692]
[1723776114179,1.97703355,2598.5,2597.5,1.92492]
[1723776114380,4.0969,2598.4,2597.5,1.92492]
[1723776114565,6.02122,2598.4,2597.4,0.1286674]
[1723776114758,0.05283368,2598.3,2597.4,0.1286674]
[1723776114954,0.05283368,2598.3,2597.4,2.0536374]
[1723776115266,0.05283368,2598.3,2597.5,1.92492]
[1723776115666,1.92434,2598.3,2597.4,2.0536574]
[1723776115868,4.0969,2598.4,2597.4,0.1286674]
[1723776116189,4.3675,2598.8,2597.5,8.95072181]
[1723776116377,4.3675,2598.8,2598.0,1.92453]
[1723776116584,0.0527386,2598.7,2597.8,1.92468]
[1723776116756,0.0527386,2598.7,2597.9,35.0]
[1723776116757,1.9767786,2598.7,2597.9,35.0]
[1723776117101,4.3675,2598.8,2597.9,36.92462]
[1723776117402,6.29149,2598.8,2597.9,36.92462]
[1723776117600,0.60270404,2598.7,2597.9,36.92462]
[1723776118057,0.55,2598.7,2597.9,36.92462]
[1723776119262,1.92419,2598.5,2597.9,35.0]
[1723776119896,1.92433,2598.3,2597.9,35.0]
[1723776120214,0.55,2598.2,2597.4,0.1286674]
[1723776120407,0.55,2598.2,2597.4,2.0536674]
[1723776120613,0.05281221,2598.1,2597.5,35.0]
[1723776120908,0.55,2598.2,2597.5,35.0]
[1723776123118,1.92453,2598.1,2597.5,35.0]
[1723776123273,0.55,2598.0,2597.5,35.0]
[1723776123471,0.05281083,2598.0,2597.5,35.0]
[1723776123801,0.55,2598.2,2597.5,35.0]
[1723776124104,4.1135,2598.9,2597.6,0.07698393]
[1723776124314,4.1135,2598.9,2598.1,1.92441]
[1723776124467,4.1135,2598.9,2597.9,1.9246]
[1723776124819,4.1135,2598.9,2597.6,0.94670408]
[1723776124820,4.1135,2598.9,2598.2,35.0]
[1723776124984,6.03739,2598.9,2598.2,35.0]
[1723776125307,4.158,2598.5,2597.5,1.9249]
[1723776125518,6.08219,2598.5,2597.5,1.9249]
[1723776125672,0.04917634,2598.4,2597.6,35.0]
[1723776125865,6.0822,2598.5,2597.6,35.0]
[1723776126111,0.55,2598.4,2597.6,36.92484]
[1723776126284,0.04918398,2598.4,2597.6,36.92481]
[1723776126780,4.05,2598.2,2597.4,0.1286674]
[1723776127107,0.04929592,2598.1,2597.6,1.92485]
[1723776127264,4.05,2598.2,2597.5,35.0]
[1723776127619,4.2771,2597.8,2597.4,0.1286674]
[1723776127995,0.04918465,2597.7,2597.5,36.92486]
[1723776128203,0.04918465,2597.7,2597.5,35.0]
[1723776128401,4.2771,2598.1,2597.5,35.0]
[1723776128966,4.2771,2598.1,2597.4,0.1286674]
[1723776129166,0.04915781,2598.0,2597.6,1.92484]
[1723776129390,0.04915781,2598.0,2597.4,2.0536574]
[1723776129594,0.04915781,2598.0,2597.4,35.1286674]
[1723776129936,4.2771,2598.1,2597.4,35.1286674]
[1723776130292,4.2771,2598.1,2597.5,1.92491]
[1723776130551,4.2771,2598.1,2597.4,37.0536574]
[1723776130552,4.2771,2598.1,2597.4,35.1286674]
[1723776130998,6.20162,2598.1,2597.4,0.1286674]
[1723776131191,4.365,2597.9,2597.4,0.1286674]
[1723776131390,0.04891417,2597.8,2597.4,0.1286674]
[1723776131590,4.365,2597.7,2597.4,0.1286674]
[1723776131859,0.04890384,2597.6,2597.4,0.1286674]
[1723776132832,4.365,2598.1,2597.4,2.0536474]
[1723776133152,0.04886942,2598.0,2597.4,2.0536474]
[1723776134205,0.04886942,2598.0,2597.6,1.92484]
[1723776134744,4.365,2598.1,2597.8,1.9247]
[1723776134905,4.365,2598.5,2597.8,1.9247]
[1723776135246,4.993905,2598.5,2597.9,35.0]
[1723776135545,0.04893137,2598.4,2597.9,35.0]
[1723776137352,4.365,2598.5,2597.9,35.0]
[1723776137550,0.59897184,2598.4,2597.9,35.0]
[1723776137873,0.55,2598.4,2597.9,35.0]
[1723776138390,0.55,2598.4,2597.4,0.1286674]
[1723776138391,1.92483,2597.7,2597.4,0.1286674]
[1723776138544,1.233912,2598.4,2597.4,0.1286674]
[1723776138545,4.0733513,2597.6,2597.4,0.1286674]
[1723776142910,6.63612,2597.5,2597.4,0.1286674]
[1723776143183,8.60964344,2597.5,2597.4,0.1286674]
[1723776143600,10.93442105,2597.5,2597.4,0.1286674]
[1723776144049,9.00950105,2597.5,2597.4,0.1286674]
[1723776144248,12.45465916,2597.5,2597.4,0.1286674]
[1723776145022,12.45465916,2597.5,2595.5,4.1104]
[1723776145023,4.44361916,2597.5,2595.7,1.92625]
[1723776145218,4.2728,2596.4,2595.6,1.92631]
[1723776145522,4.2728,2596.4,2595.6,1.92633]
[1723776145869,6.19855,2596.4,2595.4,2.31976298]
[1723776146102,4.892645,2596.4,2595.7,1.9262]
[1723776146272,4.892645,2596.4,2595.6,1.92632]
[1723776146781,4.892645,2596.4,2595.7,1.92625]
[1723776146985,4.2728,2596.4,2595.7,1.92625]
[1723776147923,4.2728,2596.4,2595.5,4.112]
[1723776148256,4.3503,2597.3,2596.4,1.92573]
[1723776148435,4.3503,2597.3,2596.2,1.92588]
[1723776148588,0.04793493,2597.2,2596.7,1.92551]
[1723776148803,0.04793493,2597.2,2596.5,35.0]
[1723776148804,4.3503,2597.3,2596.8,1.92538]
[1723776149118,4.3503,2597.3,2596.9,1.92536]
[1723776149119,0.04794898,2597.2,2596.9,1.92536]
[1723776149284,0.04794898,2597.2,2596.8,1.92544]
[1723776149491,0.04794898,2597.2,2596.6,1.92558]
[1723776149492,4.4052,2597.6,2596.9,36.92536]
[1723776149688,0.04806356,2597.1,2597.0,3.85057]
[1723776149879,4.4052,2598.1,2597.1,1.92521]
[1723776150313,0.04809137,2598.0,2597.1,1.92521]
[1723776150618,0.04809137,2598.0,2597.2,4.0505]
[1723776150821,0.04809137,2598.0,2597.4,1.92497]
[1723776151120,1.92419,2598.5,2597.6,1.92478]
[1723776151338,4.4052,2598.6,2597.2,4.0505]
[1723776151629,4.4052,2598.6,2597.6,1.92484]
[1723776152277,1.92433,2598.3,2597.2,5.97562]
[1723776152471,4.1137,2598.2,2597.4,1.925]
[1723776152718,4.158838,2598.2,2597.4,1.925]
[1723776152920,4.1137,2598.2,2597.4,1.925]
[1723776153434,4.1137,2598.2,2597.5,1.92492]
[1723776153809,4.1137,2598.2,2597.4,1.92498]
[1723776154010,4.1137,2598.2,2597.4,1.92496]
[1723776154333,4.1137,2598.2,2597.6,1.92485]
[1723776154478,4.1137,2598.2,2597.4,1.92497]
[1723776156086,4.1137,2598.2,2597.5,1.92492]
[1723776156283,4.1137,2598.2,2597.7,1.92471]
[1723776156682,0.04525248,2598.1,2597.8,1.92464]
[1723776156885,0.04525248,2598.1,2597.9,35.0]
[1723776157082,4.1457,2598.5,2597.9,35.0]
[1723776157632,4.2852,2599.0,2598.3,1.92432]
[1723776158133,4.2852,2599.0,2597.9,1.9246]
[1723776158134,0.04533363,2598.9,2597.9,1.9246]
[1723776158284,0.04533363,2598.9,2598.0,1.92455]
[1723776158285,2.40228699,2598.9,2598.0,1.92455]
[1723776158594,0.04382269,2598.8,2598.0,1.92455]
[1723776158930,0.04382269,2598.8,2598.1,36.92447]
[1723776159083,0.71242029,2598.8,2598.1,36.92447]
[1723776159288,0.6685976,2598.8,2598.2,1.92439]
[1723776159485,0.0438953,2598.7,2598.1,36.92447]
[1723776159897,0.43305336,2598.9,2598.1,36.92447]
[1723776160396,0.43305336,2598.9,2598.2,1.92439]
[1723776160596,0.51572431,2598.8,2598.2,1.92439]
[1723776161326,0.51572431,2598.8,2598.1,36.92448]
[1723776161481,0.55,2598.7,2598.1,36.92448]
[1723776161917,0.04395394,2598.6,2598.1,36.92448]
[1723776162300,0.47182534,2598.8,2598.1,36.92446]
[1723776162501,4.2852,2599.0,2598.1,36.92446]
[1723776162502,4.2852,2599.0,2598.4,1.92423]
[1723776162806,4.2852,2599.0,2598.3,1.92427]
[1723776163314,4.1376,2599.3,2598.4,1.92423]
[1723776163641,0.41376,2599.2,2598.4,1.92423]
[1723776163853,0.41376,2599.2,2597.9,1.92463]
[1723776163854,4.1376,2598.9,2597.8,1.92463]
[1723776164210,4.1376,2598.9,2597.9,35.0]
[1723776164211,0.04391932,2598.8,2597.9,35.0]
[1723776164432,4.1376,2598.9,2597.9,35.0]
[1723776164645,6.06152,2598.9,2597.9,36.92461]
[1723776164950,6.06152,2598.9,2597.7,1.92477]
[1723776164951,1.92426,2598.4,2597.5,1.92491]
[1723776165149,4.1376,2598.6,2597.1,4.0924]
[1723776165313,0.04395096,2598.3,2597.6,41.01722]
[1723776165648,4.1376,2598.6,2597.7,1.92474]
[1723776165851,0.55,2598.5,2597.6,36.92482]
[1723776166153,0.55,2598.5,2597.8,1.92463]
[1723776166502,0.55,2598.5,2597.6,36.92485]
[1723776166702,0.46876,2598.4,2597.6,36.92485]
[1723776166911,0.46876,2598.4,2597.6,35.0]
[1723776167348,0.46876,2598.4,2597.6,36.92485]
[1723776167522,2.39302,2598.4,2597.6,35.0]
[1723776167729,0.294296,2598.3,2597.6,35.0]
[1723776168055,0.294296,2598.3,2597.6,36.92484]
[1723776168353,0.04389401,2598.2,2597.6,35.0]
[1723776168542,4.2041,2597.9,2596.8,6.08808]
[1723776168742,6.12876,2597.9,2596.8,1.92538]
[1723776168924,0.59441274,2597.8,2596.8,1.92538]
[1723776169122,2.59714727,2597.7,2596.9,35.0]
[1723776169951,4.0246,2597.5,2596.9,35.0]
[1723776170153,1.925,2597.4,2596.9,35.0]
[1723776170340,1.9692961,2597.4,2596.9,35.0]
[1723776170551,0.0442961,2597.4,2596.9,35.0]
[1723776170713,4.0246,2597.2,2596.4,1.92573]
[1723776171054,0.04380493,2597.1,2596.4,1.92573]
[1723776171216,0.04380493,2597.1,2596.5,1.92566]
[1723776173554,0.04380493,2597.1,2596.6,1.92557]
[1723776173781,1.92455,2598.1,2597.2,1.92511]
[1723776174056,0.03783372,2598.0,2597.8,1.92464]
[1723776174215,0.03783372,2598.0,2597.5,4.268]
[1723776174216,0.03783372,2598.0,2597.7,1.92477]
[1723776174574,1.92411,2598.6,2597.6,1.92485]
[1723776174854,0.03798929,2598.5,2597.5,4.268]
[1723776175052,0.03798929,2598.5,2597.7,1.92477]
[1723776175426,1.92412,2598.6,2597.6,1.92485]
[1723776175625,0.03812031,2598.5,2597.7,1.9247]
[1723776176019,1.92412,2598.6,2597.6,1.92485]
[1723776176369,1.96254593,2598.5,2597.5,6.19291]
[1723776176669,1.96254593,2598.5,2597.3,1.92506]
[1723776176670,1.92434,2598.3,2597.3,1.92506]
[1723776176876,4.0835,2598.4,2597.4,1.92499]
[1723776177164,0.58833235,2598.3,2597.1,4.268]
[1723776177370,0.03833235,2598.3,2597.5,1.92486]
[1723776177661,2.51270235,2598.3,2597.2,1.92514]
[1723776177871,2.51270235,2598.3,2597.3,1.92505]